bitfinex-derivatives/quotes_BTCF0:USTF0_20250915
["timestamp","ask_amount","ask_price","bid_price","bid_amount"]
[1757947502019,0.38408606,114990.0,114980.0,0.39654]
[1757947502319,0.38608606,114990.0,114980.0,0.39654]
[1757947502517,0.38908606,114990.0,114980.0,0.39654]
[1757947502722,0.05860246,114990.0,114980.0,0.39654]
[1757947503020,0.05860246,114990.0,114980.0,0.38365]
[1757947503322,0.40198606,114990.0,114980.0,0.38365]
[1757947504614,0.40198606,114990.0,114980.0,0.39654]
[1757947505016,0.05860246,114990.0,114980.0,0.39654]
[1757947505217,0.04570246,114990.0,114980.0,0.7399236]
[1757947505421,0.02241246,114990.0,114980.0,1.0768634]
[1757947506920,0.02041246,114990.0,114980.0,1.0768634]
[1757947507120,0.01841246,114990.0,114980.0,1.0768634]
[1757947507324,0.01941246,114990.0,114980.0,1.0768634]
[1757947508619,0.00041246,114990.0,114980.0,1.0768634]
[1757947509021,0.00041246,114990.0,114980.0,1.8786634]
[1757947510016,0.0001,115000.0,114990.0,0.1222823]
[1757947510216,0.0001,115010.0,115000.0,0.1226847]
[1757947510421,0.02339,115020.0,115010.0,0.03574]
[1757947510715,0.02329,115020.0,115010.0,0.7399236]
[1757947512928,0.02329,115020.0,115010.0,1.5416436]
[1757947513124,0.03201033,115030.0,115020.0,0.03574]
[1757947513330,0.3563836,115040.0,115020.0,0.39654]
[1757947513529,0.3796736,115040.0,115030.0,0.38365]
[1757947513726,0.4015003,115040.0,115030.0,0.38365]
[1757947514527,0.3795736,115040.0,115030.0,0.38365]
[1757947514727,0.3805736,115040.0,115030.0,0.38365]
[1757947514930,0.03719,115040.0,115030.0,0.38365]
[1757947515225,0.3676736,115040.0,115030.0,0.39615]
[1757947515426,0.045977,115040.0,115030.0,0.39615]
[1757947515829,0.045977,115040.0,115030.0,0.38365]
[1757947516031,0.3893606,115040.0,115030.0,0.38365]
[1757947516731,0.3913606,115040.0,115030.0,0.38365]
[1757947516929,0.3923606,115040.0,115030.0,0.38365]
[1757947518540,0.04019,115040.0,115030.0,0.38365]
[1757947520438,0.3706736,115040.0,115030.0,0.39615]
[1757947520639,0.02729,115040.0,115030.0,0.39615]
[1757947520835,0.04019,115040.0,115030.0,0.39615]
[1757947521531,0.3835736,115040.0,115030.0,0.39615]
[1757947521732,0.04019,115040.0,115030.0,0.39615]
[1757947522141,0.06208477,115040.0,115030.0,0.39615]
[1757947522333,0.07085278,115040.0,115030.0,0.39615]
[1757947522539,0.41423638,115040.0,115030.0,0.38365]
[1757947523330,0.41423638,115040.0,115030.0,0.39615]
[1757947523735,0.41423638,115040.0,115030.0,0.38365]
[1757947527743,0.66423638,115040.0,115030.0,0.38365]
[1757947527944,0.66423638,115040.0,115030.0,0.3608]
[1757947528239,0.66423638,115040.0,115030.0,0.38189]
[1757947528240,1.46559638,115040.0,115030.0,0.38189]
[1757947528443,1.46559638,115040.0,115030.0,0.3608]
[1757947529038,1.48285892,115040.0,115030.0,0.3608]
[1757947529247,1.51403332,115040.0,115030.0,0.3608]
[1757947530641,1.51399332,115040.0,115030.0,0.3608]
[1757947532233,0.03444,115030.0,115020.0,0.3608]
[1757947532438,0.03444,115030.0,115010.0,0.38189]
[1757947532439,0.03444,115020.0,115010.0,0.38189]
[1757947532644,0.408998,115020.0,115010.0,0.38189]
[1757947532851,1.20099837,115020.0,115010.0,0.3608]
[1757947533146,1.20099837,115020.0,115010.0,0.38189]
[1757947533741,1.54438197,115020.0,115010.0,0.3608]
[1757947533939,1.54438197,115020.0,115010.0,0.38189]
[1757947534142,0.39971837,115020.0,115010.0,0.38189]
[1757947534343,0.04296477,115020.0,115010.0,0.7381636]
[1757947534542,0.04296477,115020.0,115010.0,0.64478]
[1757947535851,0.38595704,115020.0,115010.0,0.98777227]
[1757947536952,0.39932704,115020.0,115010.0,0.98777227]
[1757947537152,0.43050144,115020.0,115010.0,0.98777227]
[1757947537651,0.38595704,115020.0,115010.0,0.98777227]
[1757947538144,0.04296477,115020.0,115010.0,0.98777227]
[1757947538348,0.38595704,115020.0,115010.0,0.98777227]
[1757947539251,0.38595704,115020.0,115010.0,0.73777227]
[1757947540447,0.04296477,115020.0,115010.0,1.53909227]
[1757947540654,0.02189477,115020.0,115010.0,1.78909227]
[1757947542142,0.0001,115030.0,115010.0,2.21900224]
[1757947542347,0.02187851,115030.0,115020.0,1.08076454]
[1757947542547,0.02177851,115030.0,115020.0,1.33076454]
[1757947542957,0.02177851,115030.0,115020.0,1.33940461]
[1757947543656,0.02277851,115030.0,115020.0,1.33940461]
[1757947546243,0.02377851,115030.0,115020.0,1.33940461]
[1757947546446,0.02377851,115030.0,115020.0,1.33076454]
[1757947546953,0.02377851,115030.0,115020.0,1.08076454]
[1757947547155,0.02377851,115030.0,115020.0,0.73777227]
[1757947547156,0.38784078,115030.0,115020.0,0.73777227]
[1757947547358,0.04484851,115030.0,115020.0,1.53901227]
[1757947547651,0.38784078,115030.0,115020.0,1.53901227]
[1757947547852,0.38784078,115030.0,115020.0,0.73777227]
[1757947548050,0.38784078,115030.0,115020.0,1.53901227]
[1757947548950,0.38784078,115030.0,115020.0,1.19602]
[1757947549150,0.38784078,115030.0,115020.0,1.53901227]
[1757947550556,0.38784078,115030.0,115020.0,0.73777227]
[1757947550856,0.40121078,115030.0,115020.0,1.53897227]
[1757947551349,0.40121078,115030.0,115020.0,1.18309]
[1757947551550,0.65121078,115030.0,115020.0,0.38189]
[1757947551750,0.65121078,115030.0,115020.0,1.18309]
[1757947554159,0.65121078,115030.0,115020.0,1.53897227]
[1757947554362,0.63784078,115030.0,115020.0,1.53897227]
[1757947554857,0.29484851,115030.0,115020.0,1.53897227]
[1757947555059,0.38784078,115030.0,115020.0,1.88196454]
[1757947555450,0.38784078,115030.0,115020.0,1.53897227]
[1757947556956,0.04484851,115030.0,115020.0,1.53897227]
[1757947557263,0.38784078,115030.0,115020.0,1.53897227]
[1757947557770,0.40171078,115030.0,115020.0,0.72488227]
[1757947558058,0.40171078,115030.0,115020.0,1.52604227]
[1757947558660,0.40171078,115030.0,115020.0,1.18305]
[1757947558661,0.99470305,115030.0,115020.0,1.18305]
[1757947559163,0.65171078,115030.0,115020.0,1.18305]
[1757947560562,0.65171078,115030.0,115020.0,0.38189]
[1757947560961,0.99470305,115030.0,115020.0,0.38189]
[1757947561164,0.99470305,115030.0,115020.0,0.3608]
[1757947561860,0.30871851,115030.0,115020.0,0.3608]
[1757947562162,0.99470305,115030.0,115020.0,0.38358]
[1757947563264,0.05871851,115030.0,115020.0,0.72657227]
[1757947563462,0.40171078,115030.0,115020.0,0.72657227]
[1757947564863,0.40171078,115030.0,115020.0,0.38358]
[1757947566962,0.40171078,115030.0,115020.0,0.39647]
[1757947567664,0.40171078,115030.0,115020.0,0.38358]
[1757947567965,0.05871851,115030.0,115020.0,0.38358]
[1757947568267,0.40171078,115030.0,115020.0,0.38358]
[1757947568969,0.40171078,115030.0,115020.0,0.73946227]
[1757947571664,0.38784078,115030.0,115020.0,0.73946227]
[1757947571872,0.02377851,115030.0,115020.0,1.33245454]
[1757947572271,0.04522851,115030.0,115020.0,0.98946227]
[1757947572471,0.02377851,115030.0,115020.0,1.33245454]
[1757947572672,0.02377851,115030.0,115020.0,2.13361454]
[1757947573067,0.002,115030.0,115020.0,2.13361454]
[1757947574765,0.002,115030.0,115020.0,1.33245454]
[1757947574965,0.002,115030.0,115020.0,2.13357454]
[1757947576773,0.002,115030.0,115020.0,1.33245454]
[1757947577070,0.002,115030.0,115020.0,2.13357454]
[1757947578273,0.002,115030.0,115020.0,1.44759]
[1757947578570,0.002,115030.0,115020.0,2.13357454]
[1757947579268,0.002,115030.0,115020.0,2.13353454]
[1757947580070,0.002,115030.0,115020.0,1.33245454]
[1757947580271,0.002,115030.0,115020.0,2.13353454]
[1757947581967,0.002,115030.0,115020.0,2.22044464]
[1757947582168,0.002,115030.0,115020.0,1.5344601]
[1757947582374,0.002,115030.0,115020.0,2.22044464]
[1757947583777,0.002,115030.0,115020.0,2.13353454]
[1757947584668,0.002,115030.0,115020.0,0.98946227]
[1757947584874,0.002,115030.0,115020.0,2.13345454]
[1757947587374,0.002,115030.0,115020.0,2.13341454]
[1757947588978,0.002,115030.0,115020.0,1.44743]
[1757947589180,0.002,115030.0,115020.0,2.13341454]
[1757947590773,0.002,115030.0,115020.0,2.22032464]
[1757947590973,0.002,115030.0,115020.0,1.5343401]
[1757947591178,0.002,115030.0,115020.0,2.13341454]
[1757947591375,0.002,115030.0,115020.0,1.33245454]
[1757947591574,0.002,115030.0,115020.0,2.13333454]
[1757947592382,0.002,115030.0,115020.0,1.44735]
[1757947592578,0.002,115030.0,115020.0,2.13333454]
[1757947592779,0.002,115030.0,115020.0,1.33245454]
[1757947593082,0.002,115030.0,115020.0,2.13333454]
[1757947593575,0.002,115030.0,115020.0,0.64647]
[1757947593782,0.38151227,115030.0,115020.0,1.18446]
[1757947593984,0.63151227,115030.0,115020.0,0.38358]
[1757947594283,0.65340973,115030.0,115020.0,1.18442]
[1757947594483,0.65340973,115030.0,115020.0,0.38358]
[1757947594692,0.996402,115030.0,115020.0,0.38358]
[1757947594879,0.996402,115030.0,115020.0,0.3608]
[1757947597783,1.45434265,115030.0,115020.0,0.3608]
[1757947598677,1.45438265,115030.0,115020.0,0.3608]
[1757947599582,1.20438265,115030.0,115020.0,0.3608]
[1757947600178,1.54746784,115030.0,115020.0,0.3608]
[1757947600684,1.20438265,115030.0,115020.0,0.3608]
[1757947601276,0.74658784,115030.0,115020.0,0.3608]
[1757947601477,0.40350265,115030.0,115020.0,0.38349]
[1757947601681,1.20438265,115030.0,115020.0,0.38349]
[1757947603686,0.40350265,115030.0,115020.0,0.38349]
[1757947604186,0.40350265,115030.0,115020.0,0.3608]
[1757947604388,0.65350265,115030.0,115020.0,0.3608]
[1757947604584,0.31041746,115030.0,115020.0,0.3608]
[1757947604783,1.45438265,115030.0,115020.0,0.3608]
[1757947605589,1.79746784,115030.0,115020.0,0.3608]
[1757947606185,0.01363,115020.0,115010.0,0.3608]
[1757947606391,0.03652,115010.0,114990.0,0.3609]
[1757947606691,0.03652,115010.0,114990.0,0.38349]
[1757947606692,1.18048519,115000.0,114990.0,0.38349]
[1757947606891,1.20238265,115000.0,114990.0,0.38349]
[1757947607088,1.20238265,115000.0,114990.0,0.3608]
[1757947607287,1.20238265,115000.0,114990.0,0.38349]
[1757947607589,1.27139855,115000.0,114990.0,0.38349]
[1757947607791,1.20238265,115000.0,114990.0,0.38349]
[1757947608293,1.20238265,115000.0,114990.0,0.38449]
[1757947608594,1.20238265,115000.0,114990.0,0.38649]
[1757947609694,1.20238265,115000.0,114990.0,0.3638]
[1757947609890,0.40150265,115000.0,114990.0,0.3638]
[1757947610091,1.20238265,115000.0,114990.0,0.3638]
[1757947610294,1.20242265,115000.0,114990.0,0.3638]
[1757947610493,0.40150265,115000.0,114990.0,0.3638]
[1757947611091,1.20242265,115000.0,114990.0,0.3638]
[1757947611597,1.20242265,115000.0,114990.0,0.38649]
[1757947612693,0.40150265,115000.0,114990.0,0.38649]
[1757947612894,1.27339251,115000.0,114990.0,0.38649]
[1757947613397,0.47247251,115000.0,114990.0,0.3638]
[1757947613593,0.47247251,115000.0,114990.0,0.003]
[1757947613786,1.27339251,115000.0,114990.0,0.003]
[1757947614800,1.27339251,115000.0,114990.0,0.002]
[1757947615090,1.27339251,115000.0,114990.0,0.001]
[1757947615295,1.27339251,115000.0,114990.0,0.002]
[1757947617406,0.47247251,115000.0,114990.0,0.002]
[1757947617599,1.2733743,115000.0,114990.0,0.002]
[1757947617803,0.4724143,115000.0,114990.0,0.002]
[1757947618203,1.2733743,115000.0,114990.0,0.001]
[1757947618505,0.03638,114990.0,114980.0,0.38328]
[1757947618811,0.40130444,114990.0,114980.0,0.38328]
[1757947619005,0.02288,114990.0,114980.0,0.64611]
[1757947619199,0.36596519,114990.0,114980.0,0.64611]
[1757947620009,0.02288,114990.0,114980.0,0.64611]
[1757947620811,0.37946519,114990.0,114980.0,0.64611]
[1757947621207,0.4013219,114990.0,114980.0,0.64711]
[1757947621502,0.4013219,114990.0,114980.0,0.63428]
[1757947621709,0.4013219,114990.0,114980.0,0.63528]
[1757947621910,0.40980392,114990.0,114980.0,0.63528]
[1757947624911,0.4013219,114990.0,114980.0,0.64811]
[1757947625114,0.04473671,114990.0,114980.0,0.99119519]
[1757947625611,0.02185671,114990.0,114980.0,0.99119519]
[1757947625909,0.10261766,115000.0,114990.0,0.03509]
[1757947626213,0.12440631,115000.0,114990.0,0.39589]
[1757947627014,0.10152631,115000.0,114990.0,0.73897519]
[1757947627822,0.12440631,115000.0,114990.0,0.73897519]
[1757947628109,0.04476865,115000.0,114990.0,0.98897519]
[1757947628314,0.02188865,115000.0,114990.0,0.98897519]
[1757947629917,0.04476865,115000.0,114990.0,0.64589]
[1757947630111,0.04476865,115000.0,114990.0,1.44681]
[1757947630619,0.05826865,115000.0,114990.0,0.64589]
[1757947630816,0.40135384,115000.0,114990.0,0.64589]
[1757947631016,0.40135384,115000.0,114990.0,0.63328]
[1757947631218,0.40135384,115000.0,114990.0,0.63428]
[1757947631716,0.40135384,115000.0,114990.0,0.63528]
[1757947631919,0.40135384,115000.0,114990.0,0.38428]
[1757947632107,0.40135384,115000.0,114990.0,0.38528]
[1757947632912,1.20223384,115000.0,114990.0,0.3628]
[1757947633115,1.45223384,115000.0,114990.0,0.3628]
[1757947633822,1.48340824,115000.0,114990.0,0.3628]
[1757947634621,1.45223384,115000.0,114990.0,0.3628]
[1757947635222,1.48340824,115000.0,114990.0,0.38528]
[1757947636118,1.45223384,115000.0,114990.0,0.38528]
[1757947636320,1.48340824,115000.0,114990.0,0.38528]
[1757947637111,1.45223384,115000.0,114990.0,0.38528]
[1757947638525,1.48340824,115000.0,114990.0,0.38528]
[1757947638717,1.82649343,115000.0,114990.0,0.3628]
[1757947638923,1.87327772,115000.0,114990.0,0.3628]
[1757947639225,1.18710734,115000.0,114990.0,0.38528]
[1757947639421,0.43252824,115000.0,114990.0,0.38528]
[1757947639625,1.23340824,115000.0,114990.0,0.38528]
[1757947640220,0.43252824,115000.0,114990.0,0.38528]
[1757947640428,1.20223384,115000.0,114990.0,0.38528]
[1757947641418,0.08944305,115000.0,114990.0,0.64789]
[1757947641612,0.04476865,115000.0,114990.0,0.64789]
[1757947642017,0.05826865,115000.0,114990.0,0.63528]
[1757947642211,0.40135384,115000.0,114990.0,0.63528]
[1757947644024,0.38785384,115000.0,114990.0,0.64789]
[1757947644517,0.38785384,115000.0,114990.0,0.99097519]
[1757947644518,0.02188865,115000.0,114990.0,0.99097519]
[1757947645723,0.02188865,115000.0,114990.0,0.64789]
[1757947645923,0.40157384,115000.0,114990.0,0.63528]
[1757947646429,0.02188865,115000.0,114990.0,0.64789]
[1757947646724,0.04370865,115000.0,114990.0,0.64789]
[1757947646920,0.40051384,115000.0,114990.0,0.38528]
[1757947649523,0.40051384,115000.0,114990.0,0.39789]
[1757947649719,0.38679384,115000.0,114990.0,0.39789]
[1757947651829,0.40051384,115000.0,114990.0,0.39789]
[1757947652524,0.38679384,115000.0,114990.0,0.39789]
[1757947652922,0.40051384,115000.0,114990.0,0.38528]
[1757947653125,0.05742865,115000.0,114990.0,0.38528]
[1757947653327,0.38679384,115000.0,114990.0,0.39789]
[1757947654930,0.04370865,115000.0,114990.0,0.39789]
[1757947655124,0.38679384,115000.0,114990.0,0.39789]
[1757947655733,0.40051384,115000.0,114990.0,0.38528]
[1757947656027,0.38679384,115000.0,114990.0,0.39789]
[1757947657427,0.40051384,115000.0,114990.0,0.39789]
[1757947658731,0.40051384,115000.0,114990.0,0.38528]
[1757947659233,0.40051384,115000.0,114990.0,0.39689]
[1757947659425,0.40051384,115000.0,114990.0,0.39589]
[1757947659625,0.40051384,115000.0,114990.0,0.38328]
[1757947659832,0.74370465,115000.0,114990.0,0.38328]
[1757947664038,0.05742865,115000.0,114990.0,0.38328]
[1757947664237,0.74370465,115000.0,114990.0,0.38328]
[1757947665434,0.05742865,115000.0,114990.0,0.38328]
[1757947665639,0.74370465,115000.0,114990.0,0.38328]
[1757947665834,0.74370465,115000.0,114990.0,0.739028]
[1757947666040,0.74370465,115000.0,114990.0,0.38328]
[1757947666233,0.74370465,115000.0,114990.0,0.726418]
[1757947667234,0.74370465,115000.0,114990.0,0.38328]
[1757947670442,0.99370465,115000.0,114990.0,0.38328]
[1757947670645,1.33684265,115000.0,114990.0,0.38328]
[1757947670942,0.99370465,115000.0,114990.0,0.38328]
[1757947672643,1.33684265,115000.0,114990.0,0.3608]
[1757947672946,1.36801705,115000.0,114990.0,0.3608]
[1757947673143,0.03412,114990.0,114980.0,0.3608]
[1757947673447,1.54296465,114990.0,114980.0,0.3608]
[1757947674648,2.13610265,114990.0,114980.0,0.001]
[1757947674837,1.33542265,114990.0,114980.0,0.001]
[1757947675039,2.13610265,114990.0,114980.0,0.001]
[1757947675645,2.13610265,114990.0,114980.0,0.002]
[1757947676137,1.79296465,114990.0,114980.0,0.002]
[1757947676840,0.99228465,114990.0,114980.0,0.002]
[1757947677041,1.79300465,114990.0,114980.0,0.002]
[1757947677442,0.99228465,114990.0,114980.0,0.002]
[1757947677642,1.79300465,114990.0,114980.0,0.38451]
[1757947678236,0.99228465,114990.0,114980.0,0.38451]
[1757947678437,0.74228465,114990.0,114980.0,0.38451]
[1757947678742,1.54300465,114990.0,114980.0,0.38451]
[1757947679445,1.54300465,114990.0,114980.0,0.002]
[1757947679845,0.74228465,114990.0,114980.0,0.002]
[1757947680045,1.54300465,114990.0,114980.0,0.002]
[1757947680446,2.13614265,114990.0,114980.0,0.002]
[1757947681136,1.79300465,114990.0,114980.0,0.002]
[1757947681947,2.13614265,114990.0,114980.0,0.002]
[1757947682245,2.13618265,114990.0,114980.0,0.002]
[1757947682639,2.49698265,114990.0,114980.0,0.002]
[1757947683239,2.52815705,114990.0,114970.0,0.3608]
[1757947683441,0.03686,114970.0,114960.0,0.3608]
[1757947683640,1.56309823,114970.0,114960.0,0.3608]
[1757947683841,0.76233823,114970.0,114960.0,0.3608]
[1757947684042,1.56309823,114970.0,114960.0,0.38251]
[1757947684644,0.76233823,114970.0,114960.0,0.38251]
[1757947684850,1.56309823,114970.0,114960.0,0.38251]
[1757947685255,1.63195826,114970.0,114960.0,0.3638]
[1757947685542,1.97509626,114970.0,114960.0,0.3638]
[1757947685749,2.22409626,114970.0,114960.0,0.003]
[1757947685946,2.58489626,114970.0,114960.0,0.003]
[1757947686447,1.78413626,114970.0,114960.0,0.003]
[1757947686645,1.78413626,114970.0,114960.0,0.004]
[1757947686845,2.22413626,114970.0,114960.0,0.004]
[1757947687050,1.88099826,114970.0,114960.0,0.004]
[1757947687451,2.22413626,114970.0,114960.0,0.004]
[1757947687746,1.42333626,114970.0,114960.0,0.004]
[1757947688458,1.88103826,114970.0,114960.0,0.001]
[1757947688646,1.08019826,114970.0,114960.0,0.002]
[1757947688845,1.88099826,114970.0,114960.0,0.002]
[1757947689145,1.88099826,114970.0,114960.0,0.001]
[1757947689649,1.08019826,114970.0,114960.0,0.001]
[1757947689850,1.88103826,114970.0,114960.0,0.001]
[1757947692355,1.88107826,114970.0,114960.0,0.001]
[1757947693053,1.88103826,114970.0,114960.0,0.38351]
[1757947693354,0.83019826,114970.0,114960.0,0.38351]
[1757947693555,1.63107826,114970.0,114960.0,0.38351]
[1757947695855,1.63107826,114970.0,114960.0,0.3618]
[1757947696157,1.63107826,114970.0,114960.0,0.001]
[1757947696350,1.97421626,114970.0,114960.0,0.001]
[1757947696546,1.97421626,114970.0,114950.0,0.3608]
[1757947696547,0.03686,114950.0,114940.0,0.3609]
[1757947696746,0.03686,114950.0,114930.0,0.38110447]
[1757947696747,0.01382,114940.0,114930.0,0.38110447]
[1757947697051,1.08816265,114940.0,114930.0,0.3608]
[1757947697546,1.09667399,114940.0,114930.0,0.3608]
[1757947698055,1.09467399,114940.0,114930.0,0.3608]
[1757947699147,1.09367399,114940.0,114930.0,0.3608]
[1757947699748,1.09367399,114940.0,114930.0,0.3618]
[1757947700548,1.09367399,114940.0,114930.0,0.3628]
[1757947701144,1.12484839,114940.0,114930.0,0.3628]
[1757947701547,1.12502365,114940.0,114930.0,0.3628]
[1757947701944,1.12502365,114940.0,114930.0,0.002]
[1757947702349,1.12502365,114940.0,114930.0,0.001]
[1757947702754,1.12502365,114940.0,114920.0,0.3609]
[1757947702953,1.524096,114930.0,114920.0,0.38261]
[1757947703255,1.54615991,114930.0,114920.0,0.38261]
[1757947703950,1.54615991,114930.0,114920.0,0.3609]
[1757947704155,1.92047231,114930.0,114920.0,0.0001]
[1757947704354,1.57733431,114930.0,114920.0,0.0001]
[1757947704657,0.8231586,114930.0,114920.0,0.0001]
[1757947704852,1.6241186,114930.0,114920.0,0.0001]
[1757947705048,0.8231586,114930.0,114920.0,0.0001]
[1757947705355,1.6241586,114930.0,114920.0,0.02181]
[1757947705756,1.57737431,114930.0,114920.0,0.38261]
[1757947705950,1.57737431,114930.0,114920.0,0.38361]
[1757947706251,1.6241586,114930.0,114920.0,0.38361]
[1757947707156,1.57737431,114930.0,114920.0,0.38361]
[1757947707856,1.57737431,114930.0,114920.0,0.3619]
[1757947708057,1.57737431,114930.0,114920.0,0.38504]
[1757947708261,1.64633484,114930.0,114920.0,0.38504]
[1757947710856,1.98947284,114930.0,114920.0,0.3619]
[1757947711158,0.01389,114910.0,114900.0,0.38404]
[1757947711358,1.865804,114910.0,114900.0,0.3608]
[1757947711551,1.88786791,114910.0,114900.0,0.3608]
[1757947711760,1.54472991,114910.0,114900.0,0.3608]
[1757947712559,1.54472991,114910.0,114900.0,0.3618]
[1757947713558,1.54472991,114910.0,114900.0,0.3628]
[1757947713759,0.74368991,114910.0,114900.0,0.3628]
[1757947714262,1.54472991,114910.0,114900.0,0.3628]
[1757947716260,1.57591018,114910.0,114900.0,0.3628]
[1757947716668,0.77487018,114910.0,114900.0,0.3628]
[1757947716863,0.08859418,114910.0,114900.0,0.3628]
[1757947717168,0.77487018,114910.0,114900.0,0.38594]
[1757947717368,1.57595018,114910.0,114900.0,0.38594]
[1757947717662,0.08859418,114910.0,114900.0,0.38594]
[1757947717963,1.20163191,114910.0,114900.0,0.38594]
[1757947718165,0.05741391,114910.0,114900.0,0.64952]
[1757947718366,0.38666191,114910.0,114900.0,0.64952]
[1757947719258,0.38666191,114910.0,114900.0,0.39952]
[1757947720059,0.38666191,114910.0,114900.0,0.992658]
[1757947720363,0.02206391,114910.0,114900.0,0.992658]
[1757947720563,0.364598,114910.0,114900.0,0.992658]
[1757947720766,0.38666191,114910.0,114900.0,0.992658]
[1757947721468,0.38666191,114910.0,114900.0,0.64952]
[1757947721772,0.38717042,114910.0,114900.0,0.64952]
[1757947721959,0.40106042,114910.0,114900.0,0.63594]
[1757947722365,0.38717042,114910.0,114900.0,0.64952]
[1757947722567,0.40106042,114910.0,114900.0,0.64952]
[1757947723470,0.38717042,114910.0,114900.0,0.64952]
[1757947723972,0.04352391,114910.0,114900.0,0.64952]
[1757947724174,0.38717042,114910.0,114900.0,0.64952]
[1757947725973,0.40106042,114910.0,114900.0,0.64952]
[1757947726374,0.04352391,114910.0,114900.0,0.64952]
[1757947726574,0.38717042,114910.0,114900.0,0.64952]
[1757947727272,0.41835069,114910.0,114900.0,0.64952]
[1757947727473,0.38717042,114910.0,114900.0,0.64952]
[1757947728070,0.36571042,114910.0,114900.0,0.64952]
[1757947728479,0.02206391,114910.0,114900.0,0.99316651]
[1757947728774,0.41852642,114920.0,114910.0,0.03672]
[1757947728970,0.43241642,114920.0,114910.0,0.38394]
[1757947729175,0.47920071,114920.0,114910.0,0.38394]
[1757947729376,0.43241642,114920.0,114910.0,0.38394]
[1757947729777,0.41852642,114920.0,114910.0,0.39752]
[1757947730983,0.38734615,114920.0,114910.0,0.39752]
[1757947731377,0.04369964,114920.0,114910.0,0.39752]
[1757947731681,0.38734615,114920.0,114910.0,0.39752]
[1757947733078,0.40116615,114920.0,114910.0,0.38394]
[1757947734790,0.65116615,114920.0,114910.0,0.3608]
[1757947735080,0.65116615,114920.0,114910.0,0.38225]
[1757947738487,0.40116615,114920.0,114910.0,0.38225]
[1757947738690,1.18962615,114920.0,114910.0,0.39541]
[1757947739294,1.19002615,114920.0,114910.0,0.39541]
[1757947740486,0.38734615,114920.0,114910.0,0.39541]
[1757947741795,0.40058615,114920.0,114910.0,0.38225]
[1757947743290,0.40058615,114920.0,114910.0,0.3608]
[1757947743588,0.03507,114910.0,114900.0,0.3609]
[1757947743787,1.57802293,114910.0,114900.0,0.3608]
[1757947744692,1.57850293,114910.0,114900.0,0.3608]
[1757947745396,0.08848991,114910.0,114900.0,0.38331]
[1757947745599,1.20343615,114910.0,114900.0,0.38331]
[1757947746196,1.20343615,114910.0,114900.0,0.38431]
[1757947746396,0.40095615,114910.0,114900.0,0.38431]
[1757947746688,1.20555615,114910.0,114900.0,0.39847]
[1757947746897,1.20555615,114910.0,114900.0,0.38431]
[1757947747095,1.20755615,114910.0,114900.0,0.38431]
[1757947747697,1.20855615,114910.0,114900.0,0.38331]
[1757947751099,1.20787615,114910.0,114900.0,0.39647]
[1757947751997,0.40395615,114910.0,114900.0,0.39647]
[1757947752207,1.19449134,114910.0,114900.0,0.39647]
[1757947752507,0.02483,114910.0,114900.0,0.64647]
[1757947752694,0.003,114910.0,114900.0,0.64647]
[1757947753202,0.02483,114910.0,114900.0,0.64647]
[1757947753701,0.36847651,114910.0,114900.0,0.64647]
[1757947756014,0.003,114910.0,114900.0,0.99011651]
[1757947758209,0.002,114910.0,114900.0,0.99011651]
[1757947759113,0.36747651,114910.0,114900.0,1.44959]
[1757947759511,0.002,114910.0,114900.0,1.44959]
[1757947759712,0.36747651,114910.0,114900.0,0.64647]
[1757947759911,0.36547651,114910.0,114900.0,0.64647]
[1757947760114,0.36647651,114910.0,114900.0,0.64647]
[1757947760313,0.02283,114910.0,114900.0,0.64647]
[1757947762919,0.001,114910.0,114900.0,0.64647]
[1757947763214,0.34464651,114910.0,114900.0,0.64647]
[1757947763413,0.36647651,114910.0,114900.0,0.64647]
[1757947765115,0.37971651,114910.0,114900.0,0.38331]
[1757947765512,0.65192335,114910.0,114900.0,0.38331]
[1757947766315,0.65192315,114910.0,114900.0,0.38331]
[1757947766524,0.62971651,114910.0,114900.0,0.38331]
[1757947766916,0.65186649,114910.0,114900.0,0.38331]
[1757947769020,0.995513,114910.0,114900.0,0.3608]
[1757947770626,1.797953,114910.0,114900.0,0.3608]
[1757947770823,1.797873,114910.0,114900.0,0.3608]
[1757947771319,1.797793,114910.0,114900.0,0.3608]
[1757947771524,0.995513,114910.0,114900.0,0.3608]
[1757947771715,1.797753,114910.0,114900.0,0.3608]
[1757947772522,1.797673,114910.0,114900.0,0.3608]
[1757947773222,1.797673,114910.0,114890.0,0.3609]
[1757947773424,1.52595302,114900.0,114890.0,0.38311]
[1757947773625,1.547983,114900.0,114890.0,0.38301]
[1757947774127,1.797983,114900.0,114890.0,0.3608]
[1757947774330,0.995983,114900.0,114890.0,0.3608]
[1757947774519,1.798303,114900.0,114890.0,0.3608]
[1757947774716,0.995983,114900.0,114890.0,0.3608]
[1757947774927,1.798303,114900.0,114890.0,0.3608]
[1757947776229,1.799303,114900.0,114890.0,0.3608]
[1757947777831,0.996983,114900.0,114890.0,0.3608]
[1757947778434,0.996983,114900.0,114890.0,0.38301]
[1757947778626,1.798743,114900.0,114890.0,0.38301]
[1757947779323,1.548743,114900.0,114890.0,0.38301]
[1757947779527,0.746983,114900.0,114890.0,0.38301]
[1757947779828,0.40333649,114900.0,114890.0,0.38301]
[1757947780034,1.20545649,114900.0,114890.0,0.38301]
[1757947780536,1.20537649,114900.0,114890.0,0.38301]
[1757947780836,1.549023,114900.0,114890.0,0.38301]
[1757947781134,1.548983,114900.0,114890.0,0.38301]
[1757947781635,1.548943,114900.0,114890.0,0.38301]
[1757947781836,1.548863,114900.0,114890.0,0.38301]
[1757947783329,0.03654,114890.0,114880.0,0.3609]
[1757947783533,0.40233649,114890.0,114880.0,0.3608]
[1757947783740,0.74647464,114890.0,114880.0,0.3608]
[1757947783938,0.74647464,114890.0,114880.0,0.38301]
[1757947784236,0.81712255,114890.0,114880.0,0.38301]
[1757947784930,0.81712255,114890.0,114880.0,0.3608]
[1757947786640,0.82574783,114890.0,114880.0,0.3608]
[1757947788540,1.62722783,114890.0,114880.0,0.38301]
[1757947792048,1.62722783,114890.0,114880.0,0.3608]
[1757947794343,0.03389,114880.0,114870.0,0.38394]
[1757947794543,0.74382464,114880.0,114870.0,0.38384]
[1757947795543,0.74382464,114880.0,114870.0,0.38484]